fUST/lending_fUST_20240112
["ID","MTS","AMOUNT","RATE_DAILY","PERIOD"]
[311320561,1705062644021,-5276.06,0.00024931,2]
[311320563,1705062644030,-500.0,0.00024931,2]
[311320564,1705062644039,-620.73,0.00024931,2]
[311320566,1705062644048,-500.0,0.00024931,2]
[311320568,1705062644057,-2862.22,0.00024931,2]
[311320570,1705062644066,-8918.68,0.00024931,2]
[311320572,1705062644076,-1546.82,0.00024931,2]
[311320574,1705062644085,-623.85,0.00024931,2]
[311320576,1705062644095,-520.51,0.00024931,2]
[311320578,1705062644104,-645.44,0.00024931,2]
[311320580,1705062644113,-1160.84,0.00024931,2]
[311320582,1705062644123,-4712.57883465,0.00025,2]
[311320584,1705062644132,-155.0310062,0.00025,2]
[311320586,1705062644142,-293.81485461,0.00025,2]
[311320588,1705062644151,-155.06202481,0.00025,2]
[311320590,1705062644161,-630.56557708,0.00025,2]
[311320592,1705062644171,-368.47994274,0.00025203,2]
[311320594,1705062644181,-295.98036132,0.00025203,2]
[311320596,1705062644190,-309.97898408,0.00025204,2]
[311320598,1705062644199,-481.71746618,0.00025204,2]
[311320600,1705062644208,-500.0,0.00025205,2]
[311320602,1705062644217,-500.0,0.00025205,2]
[311320604,1705062644226,-1034.8,0.00025205,2]
[311320605,1705062644236,-429.59385075,0.00025205,2]
[311320607,1705062644245,-552.36,0.00025205,2]
[311320609,1705062644254,-2023.68,0.00025205,2]
[311320611,1705062644264,-500.0,0.00025205,2]
[311320613,1705062644273,-9866.15,0.00025205,2]
[311320615,1705062644282,-560.49,0.00025205,2]
[311320617,1705062644291,-500.0,0.00025205,2]
[311320619,1705062644300,-1914.09,0.00025205,2]
[311320621,1705062644308,-5276.06,0.00025205,2]
[311320623,1705062644320,-500.0,0.00025205,2]
[311320625,1705062644329,-620.73,0.00025205,2]
[311320627,1705062644338,-500.0,0.00025205,2]
[311320629,1705062644347,-2862.22,0.00025205,2]
[311320631,1705062644356,-8918.68,0.00025205,2]
[311320633,1705062644366,-1546.82,0.00025205,2]
[311320635,1705062644375,-623.85,0.00025205,2]
[311320637,1705062644383,-520.51,0.00025205,2]
[311320639,1705062644393,-645.44,0.00025205,2]
[311320641,1705062644402,-1160.84,0.00025205,2]
[311320643,1705062644411,-1194.829976,0.00025479,2]
[311320645,1705062644420,-1194.829976,0.00025479,2]
[311320647,1705062644429,-500.0,0.00025479,2]
[311320649,1705062644438,-500.0,0.00025479,2]
[311320650,1705062644448,-1034.8,0.00025479,2]
[311320652,1705062644458,-2023.68,0.00025479,2]
[311320654,1705062644467,-500.0,0.00025479,2]
[311320656,1705062644476,-9866.15,0.00025479,2]
[311320658,1705062644486,-560.49,0.00025479,2]
[311320660,1705062644495,-500.0,0.00025479,2]
[311320662,1705062644504,-1914.09,0.00025479,2]
[311320664,1705062644515,-5276.06,0.00025479,2]
[311320666,1705062644524,-500.0,0.00025479,2]
[311320668,1705062644533,-620.73,0.00025479,2]
[311320670,1705062644545,-500.0,0.00025479,2]
[311320672,1705062644553,-2862.22,0.00025479,2]
[311320674,1705062644562,-8918.68,0.00025479,2]
[311320676,1705062644571,-1546.82,0.00025479,2]
[311320678,1705062644579,-623.85,0.00025479,2]
[311320680,1705062644588,-520.51,0.00025479,2]
[311320682,1705062644597,-645.44,0.00025479,2]
[311320684,1705062644606,-1160.84,0.00025479,2]
[311320686,1705062644615,-159.2031486,0.00025479,2]
[311320688,1705062644624,-687.75702701,0.000257,2]
[311320689,1705062644633,-151.0,0.00025742,2]
[311320691,1705062644642,-734.200331,0.00025753,2]
[311320693,1705062644651,-734.200331,0.00025753,2]
[311320695,1705062644660,-500.0,0.00025753,2]
[311320697,1705062644668,-500.0,0.00025753,2]
[311320699,1705062644677,-1034.8,0.00025753,2]
[311320701,1705062644686,-2023.68,0.00025753,2]
[311320703,1705062644695,-500.0,0.00025753,2]
[311320705,1705062644704,-9866.15,0.00025753,2]
[311320707,1705062644713,-560.49,0.00025753,2]
[311320708,1705062644722,-500.0,0.00025753,2]
[311320709,1705062644731,-1914.09,0.00025753,2]
[311320710,1705062644740,-5276.06,0.00025753,2]
[311320711,1705062644748,-500.0,0.00025753,2]
[311320712,1705062644756,-620.73,0.00025753,2]
[311320713,1705062644767,-500.0,0.00025753,2]
[311320714,1705062644775,-2862.22,0.00025753,2]
[311320715,1705062644784,-8918.68,0.00025753,2]
[311320716,1705062644794,-1546.82,0.00025753,2]
[311320717,1705062644803,-623.85,0.00025753,2]
[311320718,1705062644812,-520.51,0.00025753,2]
[311320719,1705062644822,-645.44,0.00025753,2]
[311320720,1705062644831,-1160.84,0.00025753,2]
[311320721,1705062644840,-500.83831169,0.00026,2]
[311320722,1705062644849,-500.0,0.00026027,2]
[311320723,1705062644859,-500.0,0.00026027,2]
[311320724,1705062644868,-1034.8,0.00026027,2]
[311320725,1705062644878,-2023.68,0.00026027,2]
[311320726,1705062644887,-500.0,0.00026027,2]
[311320727,1705062644896,-9866.15,0.00026027,2]
[311320728,1705062644906,-560.49,0.00026027,2]
[311320729,1705062644915,-500.0,0.00026027,2]
[311320730,1705062644924,-1914.09,0.00026027,2]
[311320731,1705062644933,-5276.06,0.00026027,2]
[311320732,1705062644942,-500.0,0.00026027,2]
[311320734,1705062644951,-620.73,0.00026027,2]
[311320736,1705062644960,-500.0,0.00026027,2]
[311320738,1705062644969,-2862.22,0.00026027,2]
[311320740,1705062644978,-8918.68,0.00026027,2]
[311320742,1705062644988,-1546.82,0.00026027,2]
[311320744,1705062644997,-623.85,0.00026027,2]
[311320746,1705062645006,-520.51,0.00026027,2]
[311320748,1705062645018,-645.44,0.00026027,2]
[311320750,1705062645026,-1160.84,0.00026027,2]
[311320752,1705062645035,-500.0,0.00026301,2]
[311320754,1705062645045,-500.0,0.00026301,2]
[311320756,1705062645054,-1034.8,0.00026301,2]
[311320758,1705062645063,-2023.68,0.00026301,2]
[311320760,1705062645071,-500.0,0.00026301,2]
[311320762,1705062645080,-9866.15,0.00026301,2]
[311320764,1705062645089,-560.49,0.00026301,2]
[311320766,1705062645099,-500.0,0.00026301,2]
[311320768,1705062645108,-1914.09,0.00026301,2]
[311320770,1705062645117,-5276.06,0.00026301,2]
[311320772,1705062645127,-500.0,0.00026301,2]
[311320774,1705062645136,-620.73,0.00026301,2]
[311320776,1705062645145,-500.0,0.00026301,2]
[311320778,1705062645155,-2862.22,0.00026301,2]
[311320780,1705062645164,-8918.68,0.00026301,2]
[311320782,1705062645173,-1546.82,0.00026301,2]
[311320784,1705062645182,-623.85,0.00026301,2]
[311320786,1705062645191,-520.51,0.00026301,2]
[311320788,1705062645201,-645.44,0.00026301,2]
[311320790,1705062645210,-1160.84,0.00026301,2]
[311320800,1705062645294,-626.67592499,0.000264,2]
[311320803,1705062645312,-171.16873058,0.00026487,3]
[311320805,1705062645322,-500.0,0.00026575,2]
[311320807,1705062645330,-500.0,0.00026575,2]
[311320809,1705062645339,-1034.8,0.00026575,2]
[311320811,1705062645347,-2023.68,0.00026575,2]
[311320813,1705062645357,-636.61630232,0.00026575,2]
[311320814,1705062645365,-5119.11208545,0.00026575,2]
[311320824,1705062645441,-4747.03791455,0.00026575,2]
[311320825,1705062645451,-560.49,0.00026575,2]
[311320828,1705062645462,-500.0,0.00026575,2]
[311320829,1705062645472,-1914.09,0.00026575,2]
[311320831,1705062645482,-2481.23160833,0.00026575,2]
[311320840,1705062645564,-18213.91757802,0.00014262,2]
[311320842,1705062645575,-277.64773056,0.00014262,2]
[311320844,1705062645586,-6408.43469142,0.00014262,2]
[311320847,1705062645597,-2794.82839167,0.00026575,2]
[311320848,1705062645607,-500.0,0.00026575,2]
[311320850,1705062645616,-620.73,0.00026575,2]
[311320852,1705062645625,-500.0,0.00026575,2]
[311320854,1705062645635,-2862.22,0.00026575,2]
[311320856,1705062645644,-6563.19116462,0.00026575,2]
[311320859,1705062645656,-2214.39914936,0.00026575,2]
[311320861,1705062645667,-141.08968602,0.00026575,2]
[311320863,1705062645676,-1546.82,0.00026575,2]
[311320865,1705062645688,-623.85,0.00026575,2]
[311320867,1705062645697,-520.51,0.00026575,2]
[311320869,1705062645706,-645.44,0.00026575,2]
[311320871,1705062645715,-230.62733201,0.00026575,2]
[311320873,1705062645726,-930.21266799,0.00026575,2]
[311320875,1705062645736,-151.0,0.00026575,2]
[311320877,1705062645745,-151.0,0.00026575,2]
[311320879,1705062645754,-1194.829976,0.00026575,2]
[311320881,1705062645765,-1194.829976,0.00026575,2]
[311320883,1705062645774,-217.24506457,0.00026849,2]
[311320888,1705062645814,-282.75493543,0.00026849,2]
[311320890,1705062645823,-161.57455092,0.00026849,2]
[311320892,1705062645833,-1034.8,0.00026849,2]
[311320894,1705062645841,-2023.68,0.00026849,2]
[311320896,1705062645850,-1306.19051356,0.00026849,2]
[311321057,1705062646642,-500.0,0.00021917,2]
[311321059,1705062646652,-500.0,0.00021917,2]
[311321061,1705062646661,-293.85303966,0.00021917,2]
[311321063,1705062646670,-383.49442707,0.00022191,2]
[311321065,1705062646679,-500.0,0.00022191,2]
[311321067,1705062646688,-500.0,0.00022465,2]
[311321069,1705062646697,-500.0,0.00022739,2]
[311321070,1705062646706,-500.0,0.00023013,2]
[311321072,1705062646715,-500.0,0.00023287,2]
[311321075,1705062646724,-309.82744656,0.0002356,2]
[311321076,1705062646733,-500.0,0.00023561,2]
[311321078,1705062646742,-500.0,0.00023835,2]
[311321080,1705062646751,-500.0,0.00024109,2]
[311321082,1705062646761,-1280.0,0.00025479,2]
[311321085,1705062646773,-4056.83,0.00025743,3]
[311321087,1705062646785,-1280.0,0.00026575,2]
[311321088,1705062646794,-8559.95948644,0.00026849,2]
[311321090,1705062646803,-560.49,0.00026849,2]
[311321092,1705062646813,-500.0,0.00026849,2]
[311321094,1705062646822,-1914.09,0.00026849,2]
[311321096,1705062646832,-5276.06,0.00026849,2]
[311321098,1705062646841,-500.0,0.00026849,2]
[311321100,1705062646850,-620.73,0.00026849,2]
[311321102,1705062646859,-500.0,0.00026849,2]
[311321104,1705062646868,-2862.22,0.00026849,2]
[311321106,1705062646878,-8918.68,0.00026849,2]
[311321108,1705062646887,-1546.82,0.00026849,2]
[311321110,1705062646896,-623.85,0.00026849,2]
[311321112,1705062646906,-520.51,0.00026849,2]
[311321114,1705062646915,-1160.84,0.00026849,2]
[311321116,1705062646924,-645.44,0.00026849,2]
[311321119,1705062646933,-734.200331,0.00026849,2]
[311321121,1705062646943,-734.200331,0.00026849,2]
[311321123,1705062646952,-11210.01476112,0.000269,2]
[311321125,1705062646968,-4828.53607881,0.000269,2]
[311325220,1705063647689,153.0,0.00024,4]
[311325335,1705063832844,-155.0294556,0.000179,2]
[311325337,1705063832854,-272.04729889,0.00017901,2]
[311325339,1705063832863,-560.64644386,0.00017901,2]
[311325341,1705063832873,-155.0294556,0.00017901,2]
[311325343,1705063832882,-246.15296593,0.00017902,2]
[311325345,1705063832891,-155.0294556,0.00017903,2]
[311325347,1705063832901,-1770.21098457,0.00017912,2]
[311325350,1705063832912,-2004.82968734,0.00017912,2]
[311325840,1705063839033,-6731.46913274,0.00017912,2]
[311325842,1705063839042,-2780.71162769,0.00017913,2]
[311325844,1705063839051,-166.896625,0.00019178,2]
[311325846,1705063839061,-1578.49299029,0.00019903,2]
[311325848,1705063839071,-166.53442625,0.00019903,2]
[311325850,1705063839081,-8681.10304597,0.00019903,2]
[311325852,1705063839090,-155.63517585,0.00019903,2]
[311325853,1705063839100,-5049.06617706,0.00019903,2]
[311325855,1705063839109,-2033.84368768,0.00019903,2]
[311325857,1705063839119,-207.31957888,0.00019903,2]
[311325858,1705063839129,-731.90675141,0.00019903,2]
[311325859,1705063839138,-2939.03088288,0.00019903,2]
[311325860,1705063839148,-24900.0,0.00019905,2]
[311325861,1705063839157,-481.71746618,0.00020872,2]
[311325862,1705063839166,-309.97898408,0.00020872,2]
[311325863,1705063839176,-368.47994274,0.00021,2]
[311325864,1705063839185,-6228.63,0.00021906,3]
[311325865,1705063839195,-5190.53,0.00021906,3]
[311325866,1705063839204,-250.45496536,0.00021915,2]
[311325867,1705063839214,-309.8295945,0.00021915,2]
[311325868,1705063839223,-8000.02012978,0.00021916,2]
[311325869,1705063839233,-500.0,0.00021917,2]
[311325870,1705063839242,-500.0,0.00021917,2]
[311325871,1705063839252,-500.0,0.00021917,2]
[311325872,1705063839261,-500.0,0.00021917,2]
[311325873,1705063839271,-500.0,0.00021917,2]
[311325874,1705063839280,-464.35259734,0.00021917,2]
[311325875,1705063839290,-506.34902153,0.00021917,2]
[311325876,1705063839299,-500.0,0.00021917,2]
[311325877,1705063839309,-500.0,0.00021917,2]
[311325879,1705063839318,-500.0,0.00021917,2]
[311325880,1705063839328,-500.0,0.00021917,2]
[311325882,1705063839338,-500.0,0.00021917,2]
[311325884,1705063839348,-500.0,0.00021917,2]
[311325886,1705063839357,-500.0,0.00021917,2]
[311325888,1705063839367,-555.15143661,0.00021917,2]
[311325890,1705063839376,-500.0,0.00021917,2]
[311325892,1705063839386,-503.40046405,0.00021917,2]
[311325894,1705063839395,-506.10378055,0.00021917,2]
[311325896,1705063839404,-500.0,0.00021917,2]
[311325898,1705063839414,-500.0,0.00021917,2]
[311325900,1705063839423,-500.0,0.00021917,2]
[311325902,1705063839432,-264.33380194,0.00021917,2]
[311325904,1705063839442,-500.0,0.00021917,2]
[311325906,1705063839451,-319.28218975,0.00021917,2]
[311325908,1705063839466,-531.27583352,0.00021917,2]
[311325910,1705063839475,-500.0,0.00021917,2]
[311325912,1705063839485,-500.0,0.00021917,2]
[311325914,1705063839495,-500.0,0.00021917,2]
[311325916,1705063839504,-563.44,0.00021917,2]
[311325918,1705063839514,-500.0,0.00021917,2]
[311325920,1705063839523,-500.0,0.00021917,2]
[311325922,1705063839532,-516.03177833,0.00021917,2]
[311325924,1705063839541,-502.48431119,0.00021917,2]
[311325926,1705063839552,-534.11,0.00021917,2]
[311325928,1705063839561,-486.77072508,0.00021917,2]
[311325930,1705063839570,-549.18434283,0.00021917,2]
[311325932,1705063839579,-500.0,0.00021917,2]
[311325934,1705063839588,-500.0,0.00021917,2]
[311325936,1705063839597,-500.0,0.00021917,2]
[311325938,1705063839607,-500.0,0.00021917,2]
[311325940,1705063839616,-500.0,0.00021917,2]
[311325942,1705063839626,-500.0,0.00021917,2]
[311325944,1705063839635,-503.8784956,0.00021917,2]
[311325946,1705063839644,-500.0,0.00021917,2]
[311325948,1705063839652,-495.43129305,0.00021917,2]
[311325950,1705063839661,-615.79197859,0.00021917,2]
[311325952,1705063839670,-500.0,0.00021917,2]
[311325954,1705063839679,-500.0,0.00021917,2]
[311325956,1705063839689,-500.0,0.00021917,2]
[311325958,1705063839698,-502.5188286,0.00021917,2]
[311325960,1705063839710,-500.0,0.00021917,2]
[311325962,1705063839719,-504.28732715,0.00021917,2]
[311325964,1705063839727,-500.0,0.00021917,2]
[311325966,1705063839736,-500.0,0.00021917,2]
[311325968,1705063839749,-500.0,0.00021917,2]
[311325970,1705063839758,-500.0,0.00021917,2]
[311325972,1705063839767,-500.0,0.00021917,2]
[311325974,1705063839777,-500.0,0.00021917,2]
[311325976,1705063839786,-500.0,0.00021917,2]
[311325978,1705063839795,-500.0,0.00021917,2]
[311325980,1705063839804,-500.0,0.00021917,2]
[311325982,1705063839813,-580.33764453,0.00021917,2]
[311325984,1705063839823,-500.0,0.00021917,2]
[311325986,1705063839832,-501.58628097,0.00021917,2]
[311325988,1705063839842,-500.0,0.00021917,2]
[311325990,1705063839850,-500.0,0.00021917,2]
[311325992,1705063839861,-500.0,0.00021917,2]
[311325994,1705063839870,-527.79610462,0.00021917,2]
[311325996,1705063839879,-500.0,0.00021917,2]
[311325998,1705063839888,-504.28672125,0.00021917,2]
[311326000,1705063839897,-500.0,0.00021917,2]
[311326002,1705063839907,-515.59759976,0.00021917,2]
[311326004,1705063839915,-500.0,0.00021917,2]
[311326006,1705063839925,-500.0,0.00021917,2]
[311326008,1705063839933,-500.0,0.00021917,2]
[311326010,1705063839942,-500.0,0.00021917,2]
[311326012,1705063839951,-501.50194753,0.00021917,2]
[311326014,1705063839964,-500.0,0.00021917,2]
[311326016,1705063839972,-605.14027275,0.00021917,2]
[311326018,1705063839981,-500.0,0.00021917,2]
[311326020,1705063839992,-500.0,0.00021917,2]
[311326022,1705063840001,-500.0,0.00021917,2]
[311326024,1705063840010,-500.0,0.00021917,2]
[311326026,1705063840019,-500.0,0.00021917,2]
[311326028,1705063840028,-500.0,0.00021917,2]
[311326030,1705063840038,-500.0,0.00021917,2]
[311326032,1705063840047,-509.48319526,0.00021917,2]
[311326034,1705063840057,-404.20160165,0.00021917,2]
[311326036,1705063840066,-500.0,0.00021917,2]
[311326038,1705063840075,-504.98952588,0.00021917,2]
[311326040,1705063840085,-500.0,0.00021917,2]
[311326042,1705063840094,-500.0,0.00021917,2]
[311326044,1705063840103,-500.0,0.00021917,2]
[311326046,1705063840112,-500.0,0.00021917,2]
[311326048,1705063840121,-836.47,0.00021917,2]
[311326049,1705063840133,-506.81906323,0.00021917,2]
[311326051,1705063840142,-500.0,0.00021917,2]
[311326053,1705063840151,-500.0,0.00021917,2]
[311326055,1705063840160,-265.65054058,0.00021917,2]
[311326058,1705063840170,-500.0,0.00021917,2]
[311326060,1705063840179,-500.0,0.00021917,2]
[311326062,1705063840188,-500.0,0.00021917,2]
[311326064,1705063840198,-500.0,0.00021917,2]
[311326066,1705063840211,-502.58332383,0.00021917,2]
[311326068,1705063840222,-534.86153431,0.00021917,2]
[311326070,1705063840231,-500.0,0.00021917,2]
[311326072,1705063840240,-500.0,0.00021917,2]
[311326074,1705063840249,-500.0,0.00021917,2]
[311326076,1705063840258,-500.0,0.00021917,2]
[311326078,1705063840267,-500.0,0.00021917,2]
[311326080,1705063840277,-500.0,0.00021917,2]
[311326082,1705063840286,-502.81795589,0.00021917,2]
[311326084,1705063840297,-500.0,0.00021917,2]
[311326086,1705063840306,-500.0,0.00021917,2]
[311326088,1705063840315,-500.0,0.00021917,2]
[311326090,1705063840324,-502.88239032,0.00021917,2]
[311326092,1705063840334,-500.0,0.00021917,2]
[311326094,1705063840343,-500.0,0.00021917,2]
[311326096,1705063840352,-500.0,0.00021917,2]
[311326098,1705063840362,-500.0,0.00021917,2]
[311326100,1705063840371,-500.0,0.00021917,2]
[311326102,1705063840380,-501.71106437,0.00021917,2]
[311326104,1705063840389,-500.0,0.00021917,2]
[311326106,1705063840398,-200.88833402,0.00021917,2]
[311326108,1705063840408,-465.78510027,0.00021917,2]
[311326110,1705063840418,-500.0,0.00021917,2]
[311326112,1705063840427,-500.0,0.00021917,2]
[311326114,1705063840437,-502.73231423,0.00021917,2]
[311326116,1705063840446,-1691.91,0.00021917,2]
[311326118,1705063840458,-500.0,0.00021917,2]
[311326120,1705063840467,-500.0,0.00021917,2]
[311326122,1705063840476,-500.0,0.00021917,2]
[311326124,1705063840485,-500.0,0.00021917,2]
[311326126,1705063840494,-505.14388722,0.00021917,2]
[311326128,1705063840503,-500.0,0.00021917,2]
[311326130,1705063840512,-500.0,0.00021917,2]
[311326132,1705063840522,-500.0,0.00021917,2]
[311326134,1705063840531,-500.0,0.00021917,2]
[311326136,1705063840541,-500.0,0.00021917,2]
[311326138,1705063840551,-503.34416239,0.00021917,2]
[311326140,1705063840560,-8652.42,0.00021917,2]
[311326142,1705063840569,-500.0,0.00021917,2]
[311326144,1705063840579,-448.21817105,0.00021917,2]
[311326146,1705063840589,-500.0,0.00021917,2]
[311326148,1705063840599,-4366.37,0.00021917,2]
[311326150,1705063840608,-500.0,0.00021917,2]
[311326152,1705063840617,-500.0,0.00021917,2]
[311326154,1705063840626,-507.5451447,0.00021917,2]
[311326156,1705063840635,-500.0,0.00021917,2]
[311326158,1705063840644,-500.0,0.00021917,2]
[311326160,1705063840653,-500.0,0.00021917,2]
[311326162,1705063840662,-500.0,0.00021917,2]
[311326164,1705063840671,-500.0,0.00021917,2]
[311326166,1705063840680,-500.0,0.00021917,2]
[311326168,1705063840688,-506.55738065,0.00021917,2]
[311326171,1705063840697,-500.40768182,0.00021917,2]
[311326174,1705063840709,-500.0,0.00021917,2]
[311326177,1705063840719,-500.0,0.00021917,2]
[311326179,1705063840728,-565.37932218,0.00021917,2]
[311326181,1705063840737,-504.63290904,0.00021917,2]
[311326183,1705063840746,-500.0,0.00021917,2]
[311326185,1705063840755,-1807.55,0.00021917,2]
[311326188,1705063840764,-504.95877048,0.00021917,2]
[311326191,1705063840773,-500.0,0.00021917,2]
[311326193,1705063840782,-500.0,0.00021917,2]
[311326195,1705063840791,-505.62134056,0.00021917,2]
[311326197,1705063840801,-500.0,0.00021917,2]
[311326199,1705063840810,-570.24,0.00021917,2]
[311326201,1705063840819,-500.0,0.00021917,2]
[311326203,1705063840827,-500.0,0.00021917,2]
[311326205,1705063840836,-500.0,0.00021917,2]
[311326207,1705063840845,-500.0,0.00021917,2]
[311326208,1705063840854,-500.0,0.00021917,2]
[311326211,1705063840864,-500.0,0.00021917,2]
[311326212,1705063840873,-505.5212539,0.00021917,2]
[311326214,1705063840882,-2475.61,0.00021917,2]
[311326216,1705063840891,-500.0,0.00021917,2]
[311326219,1705063840901,-500.0,0.00021917,2]
[311326221,1705063840910,-7451.88,0.00021917,2]
[311326222,1705063840920,-500.0,0.00021917,2]
[311326224,1705063840929,-500.0,0.00021917,2]
[311326226,1705063840938,-500.0,0.00021917,2]
[311326228,1705063840947,-501.77134193,0.00021917,2]
[311326230,1705063840957,-500.0,0.00021917,2]
[311326232,1705063840966,-500.0,0.00021917,2]
[311326234,1705063840975,-500.0,0.00021917,2]
[311326236,1705063840985,-1486.41,0.00021917,2]
[311326238,1705063840995,-500.0,0.00021917,2]
[311326240,1705063841004,-500.0,0.00021917,2]
[311326242,1705063841014,-500.0,0.00021917,2]
[311326244,1705063841023,-500.0,0.00021917,2]
[311326246,1705063841032,-500.0,0.00021917,2]
[311326248,1705063841041,-500.0,0.00021917,2]
[311326250,1705063841050,-500.0,0.00021917,2]
[311326252,1705063841059,-500.0,0.00021917,2]
[311326254,1705063841068,-500.0,0.00021917,2]
[311326256,1705063841077,-637.16,0.00021917,2]
[311326258,1705063841086,-540.71,0.00021917,2]
[311326260,1705063841095,-500.0,0.00021917,2]
[311326262,1705063841104,-500.0,0.00021917,2]
[311326264,1705063841113,-1000.38,0.00021917,2]
[311326266,1705063841123,-166.666666,0.00021918,2]
[311326268,1705063841133,-295.98036132,0.00022,2]
[311326270,1705063841142,-500.0,0.00022191,2]
[311326272,1705063841151,-500.0,0.00022191,2]
[311326274,1705063841161,-500.0,0.00022191,2]
[311326276,1705063841171,-500.0,0.00022191,2]
[311326278,1705063841180,-240.68955365,0.00022191,2]
[311326280,1705063841189,-500.0,0.00022191,2]
[311326282,1705063841198,-500.0,0.00022191,2]
[311326284,1705063841208,-623.8853397,0.00022191,2]
[311326286,1705063841217,-500.0,0.00022191,2]
[311326288,1705063841226,-253.32882516,0.00022191,2]
[311326290,1705063841236,-503.33070678,0.00022191,2]
[311326292,1705063841245,-500.0,0.00022191,2]
[311326294,1705063841255,-534.11,0.00022191,2]
[311326296,1705063841264,-571.84121311,0.00022191,2]
[311326298,1705063841274,-514.46624036,0.00022191,2]
[311326300,1705063841283,-537.2506109,0.00022191,2]
[311326302,1705063841292,-500.0,0.00022191,2]
[311326304,1705063841301,-500.0,0.00022191,2]
[311326306,1705063841310,-500.0,0.00022191,2]
[311326308,1705063841320,-500.0,0.00022191,2]
[311326310,1705063841329,-500.0,0.00022191,2]
[311326312,1705063841337,-500.0,0.00022191,2]
[311326314,1705063841347,-503.79144164,0.00022191,2]
[311326326,1705063841450,-500.0,0.00022191,2]
[311326328,1705063841462,-503.4340707,0.00022191,2]
[311326330,1705063841471,-500.0,0.00022191,2]
[311326332,1705063841480,-302.39991316,0.00022191,2]
[311326334,1705063841489,-502.05991619,0.00022191,2]
[311326336,1705063841499,-500.0,0.00022191,2]
[311326338,1705063841509,-500.0,0.00022191,2]
[311326340,1705063841518,-500.0,0.00022191,2]
[311326342,1705063841527,-500.0,0.00022191,2]
[311326344,1705063841536,-836.47,0.00022191,2]
[311326346,1705063841545,-500.0,0.00022191,2]
[311326348,1705063841555,-505.15444565,0.00022191,2]
[311326350,1705063841564,-500.0,0.00022191,2]
[311326352,1705063841573,-500.0,0.00022191,2]
[311326354,1705063841582,-503.61309405,0.00022191,2]
[311326355,1705063841592,-506.34318493,0.00022191,2]
[311326357,1705063841601,-500.0,0.00022191,2]
[311326359,1705063841610,-500.0,0.00022191,2]
[311326361,1705063841619,-500.0,0.00022191,2]
[311326363,1705063841627,-556.44325648,0.00022191,2]
[311326365,1705063841636,-500.0,0.00022191,2]
[311326366,1705063841645,-500.0,0.00022191,2]
[311326367,1705063841654,-525.35269183,0.00022191,2]
[311326368,1705063841662,-500.0,0.00022191,2]
[311326369,1705063841671,-165.5381675,0.00022191,2]
[311326370,1705063841679,-500.0,0.00022191,2]
[311326371,1705063841688,-500.0,0.00022191,2]
[311326372,1705063841697,-500.0,0.00022191,2]
[311326374,1705063841706,-1691.91,0.00022191,2]
[311326376,1705063841715,-500.0,0.00022191,2]
[311326378,1705063841724,-500.0,0.00022191,2]
[311326380,1705063841733,-500.0,0.00022191,2]
[311326382,1705063841742,-500.0,0.00022191,2]
[311326384,1705063841751,-500.0,0.00022191,2]
[311326386,1705063841760,-8652.42,0.00022191,2]
[311326388,1705063841769,-184.13370995,0.00022191,2]
[311326390,1705063841778,-4366.37,0.00022191,2]
[311326392,1705063841788,-500.0,0.00022191,2]
[311326394,1705063841797,-500.0,0.00022191,2]